[Event "Titled Tuesday Blitz July 25 Late 2023"]
[White "Andreikin, Dmitry"]
[Black "Nenezic, Marko"]
[WhiteFideId "4158814"]
[BlackFideId "912123"]
[WhiteElo "3026"]
[BlackElo "2773"]
[Result "1-0"]
[Round "3"]
[TimeControl "180+2"]
[Date "2023.07.25"]
[WhiteClock "0:01:24"]
[BlackClock "0:00:16"]
[Board "10"]

1. d4 {[%clk 0:03:00]}  Nf6 {[%clk 0:03:00]} 2. c4 {[%clk 0:03:01]}  g6 {[%clk 0:03:00]} 3. Nc3 {[%clk 0:03:00]}  Bg7 {[%clk 0:03:01]} 4. e4 {[%clk 0:03:00]}  d6 {[%clk 0:03:02]} 5. h3 {[%clk 0:03:01]}  O-O {[%clk 0:03:02]} 6. Be3 {[%clk 0:03:01]}  e5 {[%clk 0:02:59]} 7. d5 {[%clk 0:03:00]}  a5 {[%clk 0:03:00]} 8. Nf3 {[%clk 0:02:59]}  Na6 {[%clk 0:03:01]} 9. Nd2 {[%clk 0:02:59]}  Nc5 {[%clk 0:02:58]} 10. Be2 {[%clk 0:02:59]}  c6 {[%clk 0:02:58]} 11. O-O {[%clk 0:02:58]}  Bd7 {[%clk 0:02:57]} 12. b3 {[%clk 0:02:58]}  Ne8 {[%clk 0:02:48]} 13. a3 {[%clk 0:02:51]}  f5 {[%clk 0:02:48]} 14. b4 {[%clk 0:02:51]}  Na6 {[%clk 0:02:44]} 15. dxc6 {[%clk 0:02:49]}  bxc6 {[%clk 0:02:42]} 16. b5 {[%clk 0:02:48]}  f4 {[%clk 0:02:40]} 17. bxa6 {[%clk 0:02:42]}  fxe3 {[%clk 0:02:40]} 18. fxe3 {[%clk 0:02:43]}  Rxa6 {[%clk 0:01:54]} 19. c5 {[%clk 0:02:42]}  Ra8 {[%clk 0:01:51]} 20. Nc4 {[%clk 0:02:38]}  Rxf1+ {[%clk 0:01:46]} 21. Bxf1 {[%clk 0:02:32]}  dxc5 {[%clk 0:01:40]} 22. Na4 {[%clk 0:02:25]}  Qe7 {[%clk 0:01:37]} 23. Nab6 {[%clk 0:02:19]}  Ra7 {[%clk 0:01:36]} 24. Qa4 {[%clk 0:02:13]}  Bh6 {[%clk 0:01:25]} 25. Rd1 {[%clk 0:02:10]}  Nf6 {[%clk 0:01:18]} 26. Be2 {[%clk 0:01:53]}  Be8 {[%clk 0:00:46]} 27. Nc8 {[%clk 0:01:51]}  Qc7 {[%clk 0:00:44]} 28. Nxa7 {[%clk 0:01:50]}  Qxa7 {[%clk 0:00:45]} 29. Rd8 {[%clk 0:01:42]}  Qe7 {[%clk 0:00:42]} 30. Qxa5 {[%clk 0:01:40]}  Nxe4 {[%clk 0:00:42]} 31. Qa8 {[%clk 0:01:38]}  Kf8 {[%clk 0:00:35]} 32. Bf3 {[%clk 0:01:33]}  Nf6 {[%clk 0:00:31]} 33. Bxc6 {[%clk 0:01:32]}  e4 {[%clk 0:00:28]} 34. Bxe8 {[%clk 0:01:31]}  Nxe8 {[%clk 0:00:28]} 35. Nd6 {[%clk 0:01:29]}  Bxe3+ {[%clk 0:00:28]} 36. Kh1 {[%clk 0:01:28]}  Qf6 {[%clk 0:00:20]} 37. Rxe8+ {[%clk 0:01:28]}  Kg7 {[%clk 0:00:21]} 38. Rg8+ {[%clk 0:01:25]}  Kh6 {[%clk 0:00:16]} 39. Qf8+ {[%clk 0:01:24]} 1-0


[Site "https://www.chess.com"]

[Event "Titled Tuesday Blitz July 25 Late 2023"]
[White "Bolourchifard, Farzad"]
[Black "Duda, Jan-Krzysztof"]
[WhiteFideId "12510084"]
[BlackFideId "1170546"]
[WhiteElo "2766"]
[BlackElo "3025"]
[Result "0-1"]
[Round "3"]
[TimeControl "180+2"]
[Date "2023.07.25"]
[WhiteClock "0:00:17"]
[BlackClock "0:02:08"]
[Board "11"]

1. d4 {[%clk 0:03:00]}  g6 {[%clk 0:03:00]} 2. Nf3 {[%clk 0:03:01]}  Bg7 {[%clk 0:03:00]} 3. Bg5 {[%clk 0:03:01]}  h6 {[%clk 0:03:00]} 4. Bh4 {[%clk 0:03:01]}  b6 {[%clk 0:02:55]} 5. e3 {[%clk 0:03:01]}  Bb7 {[%clk 0:02:55]} 6. Bd3 {[%clk 0:03:01]}  d6 {[%clk 0:02:55]} 7. Nbd2 {[%clk 0:02:58]}  Nd7 {[%clk 0:02:56]} 8. a4 {[%clk 0:02:57]}  a6 {[%clk 0:02:56]} 9. c3 {[%clk 0:02:55]}  g5 {[%clk 0:02:52]} 10. Bg3 {[%clk 0:02:55]}  e6 {[%clk 0:02:53]} 11. Qb3 {[%clk 0:02:43]}  h5 {[%clk 0:02:45]} 12. h3 {[%clk 0:02:12]}  g4 {[%clk 0:02:44]} 13. hxg4 {[%clk 0:02:12]}  hxg4 {[%clk 0:02:45]} 14. Rxh8 {[%clk 0:02:12]}  Bxh8 {[%clk 0:02:46]} 15. Ng1 {[%clk 0:01:58]}  Bxg2 {[%clk 0:02:40]} 16. e4 {[%clk 0:01:58]}  Qg5 {[%clk 0:02:34]} 17. O-O-O {[%clk 0:01:54]}  Ne7 {[%clk 0:02:27]} 18. Qc4 {[%clk 0:01:13]}  c5 {[%clk 0:02:14]} 19. Ne2 {[%clk 0:00:27]}  d5 {[%clk 0:02:13]} 20. exd5 {[%clk 0:00:25]}  Bxd5 {[%clk 0:02:14]} 21. Qxa6 {[%clk 0:00:18]}  Rxa6 {[%clk 0:02:13]} 22. Bxa6 {[%clk 0:00:19]}  cxd4 {[%clk 0:02:13]} 23. Bb5 {[%clk 0:00:20]}  dxc3 {[%clk 0:02:11]} 24. bxc3 {[%clk 0:00:17]}  Bc6 {[%clk 0:02:08]} 0-1


[Site "https://www.chess.com"]

[Event "Titled Tuesday Blitz July 25 Late 2023"]
[White "Paravyan, David"]
[Black "Mahdavi, Reza"]
[WhiteFideId "4194985"]
[BlackFideId "12595926"]
[WhiteElo "3022"]
[BlackElo "2764"]
[Result "0-1"]
[Round "3"]
[TimeControl "180+2"]
[Date "2023.07.25"]
[WhiteClock "0:00:42"]
[BlackClock "0:00:31"]
[Board "12"]

1. e4 {[%clk 0:03:00]}  c5 {[%clk 0:02:59]} 2. Nf3 {[%clk 0:03:01]}  d6 {[%clk 0:03:00]} 3. d4 {[%clk 0:03:02]}  cxd4 {[%clk 0:03:01]} 4. Nxd4 {[%clk 0:03:02]}  Nf6 {[%clk 0:03:02]} 5. Nc3 {[%clk 0:03:03]}  a6 {[%clk 0:03:03]} 6. h3 {[%clk 0:03:03]}  e5 {[%clk 0:02:46]} 7. Nb3 {[%clk 0:03:03]}  Be6 {[%clk 0:02:37]} 8. f4 {[%clk 0:03:03]}  g6 {[%clk 0:02:35]} 9. Qf3 {[%clk 0:02:58]}  Nc6 {[%clk 0:02:34]} 10. Be3 {[%clk 0:02:58]}  exf4 {[%clk 0:02:31]} 11. Qxf4 {[%clk 0:02:55]}  Nh5 {[%clk 0:02:29]} 12. Qf2 {[%clk 0:02:55]}  Be7 {[%clk 0:02:16]} 13. Kd1 {[%clk 0:02:52]}  Bh4 {[%clk 0:02:15]} 14. Qd2 {[%clk 0:02:47]}  Ng3 {[%clk 0:02:15]} 15. Rg1 {[%clk 0:02:48]}  O-O {[%clk 0:02:12]} 16. Bd3 {[%clk 0:02:47]}  b5 {[%clk 0:02:11]} 17. a4 {[%clk 0:02:45]}  b4 {[%clk 0:02:08]} 18. Nd5 {[%clk 0:02:45]}  Bxd5 {[%clk 0:01:52]} 19. exd5 {[%clk 0:02:46]}  Ne5 {[%clk 0:01:52]} 20. a5 {[%clk 0:02:44]}  Re8 {[%clk 0:01:41]} 21. Bf4 {[%clk 0:02:43]}  Nxd3 {[%clk 0:01:34]} 22. cxd3 {[%clk 0:02:43]}  Ne2 {[%clk 0:01:33]} 23. Rf1 {[%clk 0:02:42]}  Rc8 {[%clk 0:01:18]} 24. Ra4 {[%clk 0:02:39]}  Qe7 {[%clk 0:01:09]} 25. Rxb4 {[%clk 0:02:36]}  Nxf4 {[%clk 0:01:08]} 26. Rbxf4 {[%clk 0:02:36]}  Bg5 {[%clk 0:01:07]} 27. Rxf7 {[%clk 0:02:17]}  Qxf7 {[%clk 0:01:05]} 28. Rxf7 {[%clk 0:02:10]}  Bxd2 {[%clk 0:01:04]} 29. Ra7 {[%clk 0:02:09]}  Bb4 {[%clk 0:01:04]} 30. Nd2 {[%clk 0:01:45]}  Bxd2 {[%clk 0:01:04]} 31. Kxd2 {[%clk 0:01:46]}  Rb8 {[%clk 0:01:05]} 32. Rxa6 {[%clk 0:01:43]}  Rxb2+ {[%clk 0:01:05]} 33. Kc3 {[%clk 0:01:44]}  Rxg2 {[%clk 0:01:06]} 34. Rxd6 {[%clk 0:01:44]}  Ra8 {[%clk 0:01:05]} 35. Kd4 {[%clk 0:01:23]}  Ra2 {[%clk 0:01:00]} 36. Ke5 {[%clk 0:01:12]}  Re8+ {[%clk 0:00:58]} 37. Kf6 {[%clk 0:01:10]}  Rxa5 {[%clk 0:00:57]} 38. Rd7 {[%clk 0:01:09]}  Ra6+ {[%clk 0:00:50]} 39. d6 {[%clk 0:01:09]}  Rf8+ {[%clk 0:00:50]} 40. Ke6 {[%clk 0:01:09]}  Ra4 {[%clk 0:00:48]} 41. Rc7 {[%clk 0:01:05]}  Rd4 {[%clk 0:00:48]} 42. d7 {[%clk 0:01:05]}  Rxd3 {[%clk 0:00:48]} 43. Rc8 {[%clk 0:01:01]}  Kg7 {[%clk 0:00:41]} 44. Rc7 {[%clk 0:00:59]}  Kh6 {[%clk 0:00:33]} 45. Ke7 {[%clk 0:00:58]}  Rff3 {[%clk 0:00:32]} 46. Rc6 {[%clk 0:00:48]}  Rfe3+ {[%clk 0:00:32]} 47. Kd8 {[%clk 0:00:42]}  Rd4 {[%clk 0:00:31]} 0-1


[Site "https://www.chess.com"]

[Event "Titled Tuesday Blitz July 25 Late 2023"]
[White "Kevlishvili, Robby"]
[Black "Milikow, Yoav"]
[WhiteFideId "1040634"]
[BlackFideId "2822237"]
[WhiteElo "3011"]
[BlackElo "2760"]
[Result "1-0"]
[Round "3"]
[TimeControl "180+2"]
[Date "2023.07.25"]
[WhiteClock "0:01:20"]
[BlackClock "0:00:31"]
[Board "13"]

1. e4 {[%clk 0:03:00]}  e5 {[%clk 0:02:57]} 2. Nf3 {[%clk 0:03:01]}  Nc6 {[%clk 0:02:57]} 3. Bb5 {[%clk 0:03:01]}  Nf6 {[%clk 0:02:55]} 4. O-O {[%clk 0:03:01]}  Nxe4 {[%clk 0:02:56]} 5. Re1 {[%clk 0:03:02]}  Nd6 {[%clk 0:02:56]} 6. Nxe5 {[%clk 0:03:03]}  Be7 {[%clk 0:02:56]} 7. Bf1 {[%clk 0:03:03]}  Nxe5 {[%clk 0:02:56]} 8. Rxe5 {[%clk 0:03:02]}  O-O {[%clk 0:02:57]} 9. Nc3 {[%clk 0:03:03]}  Ne8 {[%clk 0:02:56]} 10. Nd5 {[%clk 0:03:03]}  Bd6 {[%clk 0:02:57]} 11. Re1 {[%clk 0:03:04]}  c6 {[%clk 0:02:52]} 12. Ne3 {[%clk 0:03:04]}  Be7 {[%clk 0:02:49]} 13. Nf5 {[%clk 0:03:04]}  Bf6 {[%clk 0:02:49]} 14. Qe2 {[%clk 0:03:02]}  d5 {[%clk 0:02:44]} 15. Ne7+ {[%clk 0:03:01]}  Kh8 {[%clk 0:02:38]} 16. Nxc8 {[%clk 0:03:00]}  Rxc8 {[%clk 0:02:39]} 17. Qf3 {[%clk 0:02:59]}  Nc7 {[%clk 0:02:34]} 18. c3 {[%clk 0:02:58]}  Re8 {[%clk 0:02:31]} 19. Rxe8+ {[%clk 0:02:53]}  Qxe8 {[%clk 0:02:32]} 20. d4 {[%clk 0:02:52]}  Qe1 {[%clk 0:02:31]} 21. Rb1 {[%clk 0:02:46]}  Re8 {[%clk 0:02:23]} 22. Qd3 {[%clk 0:02:39]}  Qe4 {[%clk 0:01:56]} 23. Bd2 {[%clk 0:02:36]}  g6 {[%clk 0:01:52]} 24. a4 {[%clk 0:02:28]}  Kg7 {[%clk 0:01:49]} 25. g3 {[%clk 0:02:20]}  h5 {[%clk 0:01:47]} 26. h4 {[%clk 0:02:20]}  Qg4 {[%clk 0:01:43]} 27. Bg2 {[%clk 0:02:15]}  Re7 {[%clk 0:01:37]} 28. Bf3 {[%clk 0:02:07]}  Qh3 {[%clk 0:01:35]} 29. Re1 {[%clk 0:02:00]}  Rxe1+ {[%clk 0:01:34]} 30. Bxe1 {[%clk 0:02:01]}  Ne8 {[%clk 0:01:33]} 31. Bd2 {[%clk 0:02:00]}  Nd6 {[%clk 0:01:30]} 32. Bf4 {[%clk 0:02:00]}  Qe6 {[%clk 0:01:18]} 33. Kg2 {[%clk 0:01:44]}  a5 {[%clk 0:01:12]} 34. Qe2 {[%clk 0:01:38]}  Nc4 {[%clk 0:01:06]} 35. b3 {[%clk 0:01:35]}  Qxe2 {[%clk 0:00:59]} 36. Bxe2 {[%clk 0:01:36]}  Na3 {[%clk 0:00:46]} 37. Bd3 {[%clk 0:01:28]}  b5 {[%clk 0:00:43]} 38. Bd6 {[%clk 0:01:23]}  b4 {[%clk 0:00:31]} 39. cxb4 {[%clk 0:01:20]} 1-0


[Site "https://www.chess.com"]

[Event "Titled Tuesday Blitz July 25 Late 2023"]
[White "Tristan, Leonardo"]
[Black "Santos Latasa, Jaime"]
[WhiteFideId "113816"]
[BlackFideId "2293307"]
[WhiteElo "2748"]
[BlackElo "3004"]
[Result "1-0"]
[Round "3"]
[TimeControl "180+2"]
[Date "2023.07.25"]
[WhiteClock "0:00:10"]
[BlackClock "0:01:04"]
[Board "15"]

1. d4 {[%clk 0:03:00]}  Nf6 {[%clk 0:02:59]} 2. Nf3 {[%clk 0:03:01]}  g6 {[%clk 0:02:58]} 3. Bf4 {[%clk 0:03:01]}  Bg7 {[%clk 0:02:59]} 4. e3 {[%clk 0:03:02]}  d6 {[%clk 0:02:59]} 5. Be2 {[%clk 0:03:02]}  O-O {[%clk 0:03:00]} 6. O-O {[%clk 0:03:03]}  Nh5 {[%clk 0:02:59]} 7. Bg5 {[%clk 0:03:02]}  h6 {[%clk 0:02:59]} 8. Bh4 {[%clk 0:03:02]}  g5 {[%clk 0:02:57]} 9. Nfd2 {[%clk 0:03:02]}  Nf6 {[%clk 0:02:48]} 10. Bg3 {[%clk 0:03:02]}  Nc6 {[%clk 0:02:48]} 11. c4 {[%clk 0:02:42]}  e5 {[%clk 0:02:48]} 12. d5 {[%clk 0:02:41]}  Ne7 {[%clk 0:02:47]} 13. Nc3 {[%clk 0:02:31]}  Nf5 {[%clk 0:02:47]} 14. Qc2 {[%clk 0:02:19]}  h5 {[%clk 0:02:42]} 15. Bd3 {[%clk 0:02:18]}  Nxg3 {[%clk 0:02:38]} 16. fxg3 {[%clk 0:02:12]}  Ng4 {[%clk 0:02:36]} 17. Rae1 {[%clk 0:02:11]}  Nh6 {[%clk 0:02:35]} 18. e4 {[%clk 0:01:52]}  g4 {[%clk 0:02:35]} 19. Nd1 {[%clk 0:01:49]}  c6 {[%clk 0:02:30]} 20. Ne3 {[%clk 0:01:48]}  Bd7 {[%clk 0:02:29]} 21. dxc6 {[%clk 0:01:27]}  bxc6 {[%clk 0:02:28]} 22. c5 {[%clk 0:01:15]}  dxc5 {[%clk 0:02:28]} 23. Bc4 {[%clk 0:01:07]}  Kh8 {[%clk 0:02:26]} 24. Nb3 {[%clk 0:00:59]}  Qe7 {[%clk 0:02:24]} 25. Nf5 {[%clk 0:00:52]}  Nxf5 {[%clk 0:02:13]} 26. exf5 {[%clk 0:00:53]}  Rae8 {[%clk 0:02:08]} 27. Qf2 {[%clk 0:00:51]}  Qg5 {[%clk 0:02:02]} 28. Nxc5 {[%clk 0:00:43]}  Bc8 {[%clk 0:02:00]} 29. Ne4 {[%clk 0:00:43]}  Qd8 {[%clk 0:01:59]} 30. Rd1 {[%clk 0:00:37]}  Qb6 {[%clk 0:01:58]} 31. Qxb6 {[%clk 0:00:35]}  axb6 {[%clk 0:01:58]} 32. Nd6 {[%clk 0:00:36]}  e4 {[%clk 0:01:48]} 33. Nxe8 {[%clk 0:00:35]}  Rxe8 {[%clk 0:01:48]} 34. f6 {[%clk 0:00:28]}  Bh6 {[%clk 0:01:48]} 35. Bxf7 {[%clk 0:00:29]}  Rf8 {[%clk 0:01:48]} 36. Bxh5 {[%clk 0:00:27]}  e3 {[%clk 0:01:46]} 37. Rde1 {[%clk 0:00:27]}  Ba6 {[%clk 0:01:42]} 38. Rf4 {[%clk 0:00:16]}  Bxf4 {[%clk 0:01:38]} 39. gxf4 {[%clk 0:00:17]}  Rxf6 {[%clk 0:01:39]} 40. g3 {[%clk 0:00:14]}  Rd6 {[%clk 0:01:33]} 41. Bxg4 {[%clk 0:00:14]}  Rd2 {[%clk 0:01:33]} 42. Rxe3 {[%clk 0:00:13]}  Rxb2 {[%clk 0:01:33]} 43. Rb3 {[%clk 0:00:14]}  Rxa2 {[%clk 0:01:30]} 44. Rxb6 {[%clk 0:00:14]}  Ra1+ {[%clk 0:01:25]} 45. Kg2 {[%clk 0:00:12]}  Bc4 {[%clk 0:01:25]} 46. Bf3 {[%clk 0:00:13]}  Ra2+ {[%clk 0:01:23]} 47. Kh3 {[%clk 0:00:12]}  Bf1+ {[%clk 0:01:23]} 48. Kg4 {[%clk 0:00:12]}  c5 {[%clk 0:01:23]} 49. Rc6 {[%clk 0:00:12]}  c4 {[%clk 0:01:22]} 50. Bd5 {[%clk 0:00:12]}  Rc2 {[%clk 0:01:13]} 51. Kg5 {[%clk 0:00:13]}  c3 {[%clk 0:01:11]} 52. h4 {[%clk 0:00:12]}  Rd2 {[%clk 0:01:04]} 53. Kh6 {[%clk 0:00:10]} 1-0


[Site "https://www.chess.com"]

[Event "Titled Tuesday Blitz July 25 Late 2023"]
[White "Koellner, Ruben Gideon"]
[Black "Sargsyan, Shant"]
[WhiteFideId "12993093"]
[BlackFideId "13306766"]
[WhiteElo "2715"]
[BlackElo "2993"]
[Result "0-1"]
[Round "3"]
[TimeControl "180+2"]
[Date "2023.07.25"]
[WhiteClock "0:00:00"]
[BlackClock "0:01:01"]
[Board "17"]

1. d4 {[%clk 0:03:00]}  e6 {[%clk 0:02:59]} 2. Nf3 {[%clk 0:03:00]}  b6 {[%clk 0:02:58]} 3. Nbd2 {[%clk 0:02:59]}  Bb7 {[%clk 0:02:56]} 4. e4 {[%clk 0:03:00]}  c5 {[%clk 0:02:54]} 5. c3 {[%clk 0:03:00]}  Nf6 {[%clk 0:02:50]} 6. Bd3 {[%clk 0:03:00]}  cxd4 {[%clk 0:02:50]} 7. cxd4 {[%clk 0:03:00]}  Nc6 {[%clk 0:02:51]} 8. a3 {[%clk 0:03:00]}  Be7 {[%clk 0:02:50]} 9. O-O {[%clk 0:03:00]}  O-O {[%clk 0:02:51]} 10. Qe2 {[%clk 0:02:59]}  d6 {[%clk 0:02:49]} 11. b4 {[%clk 0:02:59]}  Rc8 {[%clk 0:02:44]} 12. Bb2 {[%clk 0:02:59]}  Nh5 {[%clk 0:02:44]} 13. g3 {[%clk 0:02:59]}  Nf6 {[%clk 0:02:44]} 14. Rfe1 {[%clk 0:02:59]}  h6 {[%clk 0:02:43]} 15. Rad1 {[%clk 0:02:58]}  Nb8 {[%clk 0:02:33]} 16. e5 {[%clk 0:02:57]}  Nd5 {[%clk 0:02:28]} 17. Ne4 {[%clk 0:02:50]}  a6 {[%clk 0:02:24]} 18. h4 {[%clk 0:02:44]}  Bc6 {[%clk 0:02:19]} 19. Kh2 {[%clk 0:02:36]}  Ba4 {[%clk 0:02:19]} 20. Rc1 {[%clk 0:02:36]}  Rxc1 {[%clk 0:02:14]} 21. Rxc1 {[%clk 0:02:37]}  Qd7 {[%clk 0:02:11]} 22. exd6 {[%clk 0:02:18]}  Bxd6 {[%clk 0:02:12]} 23. Nxd6 {[%clk 0:02:19]}  Qxd6 {[%clk 0:02:12]} 24. Qe4 {[%clk 0:02:19]}  Nf6 {[%clk 0:02:08]} 25. Qe5 {[%clk 0:02:17]}  Qd5 {[%clk 0:02:05]} 26. Qxd5 {[%clk 0:02:08]}  Nxd5 {[%clk 0:02:06]} 27. Ne5 {[%clk 0:01:57]}  Rd8 {[%clk 0:02:03]} 28. Be4 {[%clk 0:01:51]}  f6 {[%clk 0:02:01]} 29. Nc4 {[%clk 0:01:47]}  Nd7 {[%clk 0:01:46]} 30. Ne3 {[%clk 0:01:35]}  Bb3 {[%clk 0:01:38]} 31. Rc6 {[%clk 0:01:33]}  Kf7 {[%clk 0:01:37]} 32. Rd6 {[%clk 0:01:25]}  Ke7 {[%clk 0:01:30]} 33. Bxd5 {[%clk 0:01:24]}  Bxd5 {[%clk 0:01:25]} 34. Rxd5 {[%clk 0:01:17]}  exd5 {[%clk 0:01:25]} 35. Nxd5+ {[%clk 0:01:18]}  Kf7 {[%clk 0:01:25]} 36. Kg2 {[%clk 0:01:15]}  b5 {[%clk 0:01:25]} 37. Nc7 {[%clk 0:01:10]}  Nb6 {[%clk 0:01:21]} 38. Nxa6 {[%clk 0:01:09]}  Nc4 {[%clk 0:01:21]} 39. Bc3 {[%clk 0:00:50]}  Nxa3 {[%clk 0:01:22]} 40. Kf3 {[%clk 0:00:51]}  Ke6 {[%clk 0:01:18]} 41. Ke4 {[%clk 0:00:47]}  f5+ {[%clk 0:01:18]} 42. Kd3 {[%clk 0:00:47]}  Rc8 {[%clk 0:01:18]} 43. d5+ {[%clk 0:00:41]}  Kxd5 {[%clk 0:01:16]} 44. Bxg7 {[%clk 0:00:41]}  h5 {[%clk 0:01:17]} 45. Nc5 {[%clk 0:00:21]}  Nc4 {[%clk 0:01:15]} 46. Nb3 {[%clk 0:00:20]}  Ra8 {[%clk 0:01:13]} 47. Bc3 {[%clk 0:00:18]}  Ne5+ {[%clk 0:01:05]} 48. Kc2 {[%clk 0:00:02]}  Ra2+ {[%clk 0:01:04]} 49. Kb1 {[%clk 0:00:02]}  Rxf2 {[%clk 0:01:05]} 50. Nd4 {[%clk 0:00:00]}  Kc4 {[%clk 0:01:01]} 0-1


[Site "https://www.chess.com"]

[Event "Titled Tuesday Blitz July 25 Late 2023"]
[White "Anton Guijarro, David"]
[Black "Jaracz, Pawel"]
[WhiteFideId "2285525"]
[BlackFideId "1102222"]
[WhiteElo "2979"]
[BlackElo "2693"]
[Result "1-0"]
[Round "3"]
[TimeControl "180+2"]
[Date "2023.07.25"]
[WhiteClock "0:00:04"]
[BlackClock "0:00:00"]
[Board "20"]

1. d4 {[%clk 0:03:00]}  Nf6 {[%clk 0:02:54]} 2. Nf3 {[%clk 0:03:01]}  e6 {[%clk 0:02:54]} 3. Bg5 {[%clk 0:03:02]}  h6 {[%clk 0:02:52]} 4. Bxf6 {[%clk 0:03:02]}  Qxf6 {[%clk 0:02:52]} 5. e4 {[%clk 0:03:03]}  d6 {[%clk 0:02:52]} 6. Nc3 {[%clk 0:03:03]}  Qd8 {[%clk 0:02:52]} 7. a4 {[%clk 0:03:02]}  Nd7 {[%clk 0:02:52]} 8. a5 {[%clk 0:03:02]}  a6 {[%clk 0:02:52]} 9. h4 {[%clk 0:03:03]}  g6 {[%clk 0:02:46]} 10. Bc4 {[%clk 0:02:49]}  Bg7 {[%clk 0:02:45]} 11. Qe2 {[%clk 0:02:48]}  Qe7 {[%clk 0:02:42]} 12. O-O {[%clk 0:02:46]}  c6 {[%clk 0:02:37]} 13. Rfe1 {[%clk 0:02:33]}  e5 {[%clk 0:02:36]} 14. d5 {[%clk 0:02:27]}  Nf6 {[%clk 0:02:35]} 15. dxc6 {[%clk 0:02:15]}  bxc6 {[%clk 0:02:34]} 16. Na4 {[%clk 0:02:16]}  Bg4 {[%clk 0:02:17]} 17. Nb6 {[%clk 0:02:14]}  Ra7 {[%clk 0:02:14]} 18. Qe3 {[%clk 0:02:00]}  O-O {[%clk 0:02:09]} 19. Nh2 {[%clk 0:01:55]}  h5 {[%clk 0:01:58]} 20. g3 {[%clk 0:01:51]}  Bh3 {[%clk 0:01:53]} 21. Rad1 {[%clk 0:01:50]}  Kh7 {[%clk 0:01:42]} 22. Nf3 {[%clk 0:01:43]}  Bh6 {[%clk 0:01:37]} 23. Ng5+ {[%clk 0:01:43]}  Kg7 {[%clk 0:01:37]} 24. Qa3 {[%clk 0:01:41]}  Bxg5 {[%clk 0:01:26]} 25. hxg5 {[%clk 0:01:42]}  Ng4 {[%clk 0:01:27]} 26. f3 {[%clk 0:01:28]}  Qxg5 {[%clk 0:01:27]} 27. fxg4 {[%clk 0:01:28]}  Bxg4 {[%clk 0:01:26]} 28. Rxd6 {[%clk 0:01:25]}  h4 {[%clk 0:01:11]} 29. Qe3 {[%clk 0:01:25]}  Qh5 {[%clk 0:01:08]} 30. Rd2 {[%clk 0:01:15]}  f5 {[%clk 0:01:03]} 31. exf5 {[%clk 0:01:09]}  Rxf5 {[%clk 0:01:03]} 32. Rf2 {[%clk 0:01:09]}  Bf3 {[%clk 0:01:02]} 33. Rxf3 {[%clk 0:00:39]}  Rxf3 {[%clk 0:01:00]} 34. Qxe5+ {[%clk 0:00:39]}  Qxe5 {[%clk 0:01:01]} 35. Rxe5 {[%clk 0:00:40]}  Rxg3+ {[%clk 0:01:01]} 36. Kh2 {[%clk 0:00:41]}  g5 {[%clk 0:00:55]} 37. Re2 {[%clk 0:00:26]}  g4 {[%clk 0:00:49]} 38. Bd3 {[%clk 0:00:18]}  Kf6 {[%clk 0:00:47]} 39. Nc4 {[%clk 0:00:16]}  Rh3+ {[%clk 0:00:41]} 40. Kg2 {[%clk 0:00:16]}  Rg3+ {[%clk 0:00:40]} 41. Kh2 {[%clk 0:00:16]}  Kg5 {[%clk 0:00:38]} 42. Nd6 {[%clk 0:00:16]}  Rh3+ {[%clk 0:00:36]} 43. Kg1 {[%clk 0:00:16]}  Kf4 {[%clk 0:00:36]} 44. Rf2+ {[%clk 0:00:14]}  Ke5 {[%clk 0:00:32]} 45. Nf7+ {[%clk 0:00:10]}  Kd5 {[%clk 0:00:22]} 46. Ng5 {[%clk 0:00:08]}  Rg3+ {[%clk 0:00:22]} 47. Kh2 {[%clk 0:00:08]}  Re7 {[%clk 0:00:22]} 48. Rd2 {[%clk 0:00:06]}  Ree3 {[%clk 0:00:06]} 49. Bxa6+ {[%clk 0:00:05]}  Kc5 {[%clk 0:00:03]} 50. Bd3 {[%clk 0:00:06]}  Kb4 {[%clk 0:00:01]} 51. a6 {[%clk 0:00:06]}  Re7 {[%clk 0:00:01]} 52. Ne4 {[%clk 0:00:05]}  Re3 {[%clk 0:00:00]} 53. Nd6 {[%clk 0:00:04]} 1-0


[Site "https://www.chess.com"]

[Event "Titled Tuesday Blitz July 25 Late 2023"]
[White "Goltsev, Dmitry"]
[Black "Kollars, Dmitrij"]
[WhiteFideId "24176710"]
[BlackFideId "12909572"]
[WhiteElo "2690"]
[BlackElo "2978"]
[Result "0-1"]
[Round "3"]
[TimeControl "180+2"]
[Date "2023.07.25"]
[WhiteClock "0:00:04"]
[BlackClock "0:00:20"]
[Board "21"]

1. e4 {[%clk 0:02:58]}  e5 {[%clk 0:02:56]} 2. Nf3 {[%clk 0:02:58]}  Nc6 {[%clk 0:02:57]} 3. Bb5 {[%clk 0:02:59]}  a6 {[%clk 0:02:56]} 4. Ba4 {[%clk 0:02:59]}  Nf6 {[%clk 0:02:55]} 5. O-O {[%clk 0:03:00]}  Bc5 {[%clk 0:02:56]} 6. Nxe5 {[%clk 0:02:59]}  Nxe5 {[%clk 0:02:53]} 7. d4 {[%clk 0:02:59]}  b5 {[%clk 0:02:54]} 8. dxe5 {[%clk 0:02:55]}  Nxe4 {[%clk 0:02:45]} 9. Bb3 {[%clk 0:02:49]}  Bb7 {[%clk 0:02:39]} 10. Bd5 {[%clk 0:02:45]}  Nxf2 {[%clk 0:02:38]} 11. Rxf2 {[%clk 0:02:36]}  Bxf2+ {[%clk 0:02:39]} 12. Kxf2 {[%clk 0:02:33]}  Qh4+ {[%clk 0:02:39]} 13. Kf1 {[%clk 0:02:30]}  Bxd5 {[%clk 0:02:39]} 14. Qxd5 {[%clk 0:02:30]}  c6 {[%clk 0:02:38]} 15. Qc5 {[%clk 0:02:18]}  Qxh2 {[%clk 0:01:42]} 16. Nc3 {[%clk 0:02:15]}  Qh1+ {[%clk 0:01:25]} 17. Kf2 {[%clk 0:02:13]}  Qh4+ {[%clk 0:01:25]} 18. Kf1 {[%clk 0:02:13]}  f6 {[%clk 0:01:21]} 19. e6 {[%clk 0:01:48]}  dxe6 {[%clk 0:01:12]} 20. Qxc6+ {[%clk 0:01:46]}  Kf7 {[%clk 0:01:12]} 21. Be3 {[%clk 0:01:12]}  Rhd8 {[%clk 0:01:00]} 22. Kg1 {[%clk 0:01:03]}  Qc4 {[%clk 0:00:55]} 23. Qxc4 {[%clk 0:01:02]}  bxc4 {[%clk 0:00:56]} 24. Rd1 {[%clk 0:01:01]}  Rxd1+ {[%clk 0:00:54]} 25. Nxd1 {[%clk 0:01:01]}  e5 {[%clk 0:00:54]} 26. b3 {[%clk 0:01:01]}  Rc8 {[%clk 0:00:53]} 27. b4 {[%clk 0:00:56]}  Ke6 {[%clk 0:00:51]} 28. Nc3 {[%clk 0:00:54]}  Rb8 {[%clk 0:00:48]} 29. Bc5 {[%clk 0:00:51]}  f5 {[%clk 0:00:46]} 30. a4 {[%clk 0:00:51]}  g5 {[%clk 0:00:33]} 31. b5 {[%clk 0:00:47]}  axb5 {[%clk 0:00:33]} 32. axb5 {[%clk 0:00:48]}  h5 {[%clk 0:00:33]} 33. b6 {[%clk 0:00:46]}  h4 {[%clk 0:00:33]} 34. Bf2 {[%clk 0:00:29]}  g4 {[%clk 0:00:30]} 35. Na4 {[%clk 0:00:17]}  g3 {[%clk 0:00:30]} 36. Bc5 {[%clk 0:00:16]}  Kd5 {[%clk 0:00:27]} 37. Kf1 {[%clk 0:00:12]}  Kc6 {[%clk 0:00:25]} 38. Be7 {[%clk 0:00:10]}  Ra8 {[%clk 0:00:25]} 39. Nc3 {[%clk 0:00:08]}  Ra1+ {[%clk 0:00:25]} 40. Ke2 {[%clk 0:00:08]}  h3 {[%clk 0:00:25]} 41. gxh3 {[%clk 0:00:04]}  g2 {[%clk 0:00:26]} 42. Bc5 {[%clk 0:00:04]}  Kxc5 {[%clk 0:00:21]} 43. b7 {[%clk 0:00:04]}  g1=Q {[%clk 0:00:21]} 44. b8=Q {[%clk 0:00:05]}  Qg2+ {[%clk 0:00:20]} 45. Ke3 {[%clk 0:00:04]}  f4# {[%clk 0:00:20]} 0-1


[Site "https://www.chess.com"]